bitfinex/quotes_ETHUSD_20241022
["timestamp","ask_amount","ask_price","bid_price","bid_amount"]
[1729630700234,0.05309471,2634.5,2634.4,0.79292302]
[1729630700529,3.7955,2634.7,2634.4,0.79292302]
[1729630700732,0.05306303,2634.6,2634.4,0.79292302]
[1729630700937,0.05306303,2634.6,2634.5,1.4685949]
[1729630701101,3.79506,2635.0,2634.5,6.05722792]
[1729630701302,0.05288223,2634.6,2634.5,5.35553302]
[1729630701498,3.79506,2635.0,2634.5,5.35553302]
[1729630701998,0.05292766,2634.9,2634.5,5.35553302]
[1729630702913,0.05292766,2634.9,2634.5,7.01669899]
[1729630703113,0.05292766,2634.9,2634.5,7.01663899]
[1729630703412,0.05292766,2634.9,2634.6,4.61618912]
[1729630703821,4.13063,2635.1,2634.6,4.61618912]
[1729630704009,0.05294582,2634.8,2634.6,4.61618912]
[1729630704333,5.79179597,2635.1,2634.6,5.40911214]
[1729630704636,5.79179597,2635.1,2634.6,1.61358214]
[1729630704836,3.84807899,2635.0,2634.5,9.15116302]
[1729630705046,3.84807899,2635.0,2634.5,5.35547302]
[1729630705202,3.84807899,2635.0,2634.5,9.15118302]
[1729630705603,3.84807899,2635.0,2634.5,5.35547302]
[1729630705919,3.84807899,2635.0,2634.6,4.61627912]
[1729630709506,3.84807899,2635.0,2634.6,0.82065912]
[1729630710749,7.64322899,2635.0,2634.6,0.82065912]
[1729630711350,7.64322899,2635.0,2634.6,1.61358214]
[1729630711550,3.84807899,2635.0,2634.6,0.79292302]
[1729630711717,3.84807899,2635.0,2634.5,5.35560302]
[1729630711911,7.64323899,2635.0,2634.5,5.35560302]
[1729630713752,7.64323899,2635.0,2634.6,0.79292302]
[1729630714251,3.79523,2634.9,2634.6,0.79292302]
[1729630714623,0.05286232,2634.8,2634.6,0.79292302]
[1729630718723,7.59029,2635.0,2634.6,0.79292302]
[1729630719246,3.84821477,2634.9,2634.6,0.79292302]
[1729630720622,3.79546,2634.8,2634.6,0.79292302]
[1729630720827,3.79549,2634.7,2634.5,0.79292302]
[1729630721134,3.8484738,2634.7,2634.5,0.79292302]
[1729630722124,0.0529838,2634.7,2634.5,0.79292302]
[1729630722362,3.79536,2634.8,2634.5,0.79292302]
[1729630722665,0.05295924,2634.7,2634.5,0.79292302]
[1729630723024,3.79536,2634.8,2634.5,0.79292302]
[1729630723336,0.05297121,2634.7,2634.5,0.79292302]
[1729630723531,3.79536,2634.8,2634.5,0.79292302]
[1729630723729,0.05296323,2634.7,2634.5,0.79292302]
[1729630723964,3.79536,2634.8,2634.5,0.79292302]
[1729630724466,0.05295924,2634.7,2634.5,0.79292302]
[1729630724854,3.79536,2634.8,2634.5,0.79292302]
[1729630725053,0.05293304,2634.6,2634.5,0.79292302]
[1729630725255,3.79536,2634.8,2634.5,0.79292302]
[1729630725434,3.79536,2634.8,2634.6,0.79364587]
[1729630730043,4.13079,2635.0,2634.6,0.79364587]
[1729630730044,3.79509,2635.0,2634.6,0.79364587]
[1729630730380,3.79509,2635.0,2634.7,0.8309]
[1729630730728,5.45651597,2634.8,2634.5,0.79364587]
[1729630731071,3.7953,2634.9,2634.5,0.79364587]
[1729630731363,3.79536,2634.8,2634.5,0.79364587]
[1729630731972,4.13087,2635.0,2634.6,0.79364587]
[1729630732143,3.79517,2635.0,2634.7,0.8086]
[1729630733473,7.59032,2635.0,2634.7,0.8086]
[1729630733680,3.79515,2635.0,2634.7,0.8086]
[1729630733846,4.13058,2635.2,2634.7,2.26104067]
[1729630733847,3.79498,2635.1,2634.7,2.26104067]
[1729630734178,5.45614597,2635.1,2634.7,2.26104067]
[1729630734346,3.79498,2635.1,2634.7,2.26104067]
[1729630734752,3.79532,2634.9,2634.7,1.60224587]
[1729630734956,3.79502,2635.1,2634.7,0.8086]
[1729630735261,3.79502,2635.1,2634.7,1.60224587]
[1729630735975,0.04956782,2635.0,2634.7,1.60224587]
[1729630737681,3.84465782,2635.0,2634.7,1.60224587]
[1729630739762,3.79524,2634.9,2634.7,1.60224587]
[1729630739967,3.79524,2634.9,2634.7,0.8086]
[1729630740139,0.04839553,2634.8,2634.7,0.8086]
[1729630740340,3.79549,2634.7,2634.6,0.79364587]
[1729630740766,0.04836135,2634.7,2634.5,0.79364587]
[1729630740936,7.59095,2634.8,2634.6,0.79364587]
[1729630741312,7.59095,2634.8,2634.4,1.96685217]
[1729630741313,0.04836135,2634.7,2634.5,0.79364587]
[1729630741442,3.84387135,2634.7,2634.5,0.79364587]
[1729630741641,3.79551,2634.7,2634.5,0.79364587]
[1729630741859,0.04834621,2634.6,2634.5,0.79364587]
[1729630742974,0.04834621,2634.6,2634.5,3.73798987]
[1729630743286,3.7953,2634.9,2634.5,3.73798987]
[1729630743441,3.7953,2634.9,2634.7,0.79351994]
[1729630744592,0.3357,2635.2,2634.6,0.86943089]
[1729630744786,0.3357,2635.2,2634.7,0.79351994]
[1729630744787,3.79509,2635.0,2634.7,0.79351994]
[1729630746764,3.79506,2635.0,2634.7,0.79351994]
[1729630747059,3.79527,2634.9,2634.7,0.79351994]
[1729630747265,3.79527,2634.9,2634.6,0.79351994]
[1729630748082,3.79527,2634.9,2634.7,0.79351994]
[1729630748447,3.79527,2634.9,2634.6,0.79351994]
[1729630748872,3.79527,2634.9,2634.7,0.79351994]
[1729630749276,3.79535,2634.8,2634.6,0.79351994]
[1729630749498,3.79549,2634.7,2634.6,0.79351994]
[1729630749700,3.79549,2634.7,2634.5,0.79351994]
[1729630749701,3.79564,2634.6,2634.5,0.79351994]
[1729630749977,3.79564,2634.6,2634.2,2.35884519]
[1729630749978,3.79578,2634.5,2634.4,0.79351994]
[1729630750312,3.79578,2634.5,2634.2,0.79351994]
[1729630750313,3.79607,2634.3,2634.2,0.79351994]
[1729630750483,3.79607,2634.3,2634.2,0.79425549]
[1729630750683,3.79593,2634.4,2634.2,0.79425549]
[1729630750883,3.8424873,2634.3,2634.2,0.79425549]
[1729630751087,3.8424873,2634.3,2634.1,0.79425549]
[1729630752819,0.0464173,2634.3,2634.1,0.79425549]
[1729630753481,0.0464173,2634.3,2634.0,0.79425549]
[1729630754715,0.0464173,2634.3,2634.1,0.79425549]
[1729630756193,0.0464173,2634.3,2634.0,0.79425549]
[1729630763315,0.0464173,2634.3,2634.0,5.54396921]
[1729630763708,3.79594,2634.4,2634.0,5.54396921]
[1729630763917,0.04473655,2634.2,2634.0,5.54396921]
[1729630764224,3.79594,2634.4,2634.0,5.54396921]
[1729630764815,0.0447517,2634.3,2634.0,5.54396921]
[1729630767345,0.0447517,2634.3,2634.2,0.7707]
[1729630767649,5.45684597,2634.6,2634.2,0.7707]
[1729630768212,0.0448018,2634.5,2634.2,0.7707]
[1729630770259,0.0448018,2634.5,2634.3,1.66116597]
[1729630770426,0.0448018,2634.5,2634.2,1.64087212]
[1729630770751,0.04480569,2634.4,2634.2,1.73056797]
[1729630771057,3.79568,2634.6,2634.2,1.73056797]
[1729630771355,0.04482084,2634.5,2634.2,1.73056797]
[1729630771858,3.84060084,2634.5,2634.2,1.73056797]
[1729630772059,3.84060084,2634.5,2634.2,0.7707]
[1729630772765,0.3357,2634.4,2634.1,0.79425549]
[1729630772965,0.3357,2634.4,2634.0,0.79425549]
[1729630773116,1.70595253,2634.3,2634.0,0.79425549]
[1729630773478,0.04478656,2634.3,2633.9,1.54875549]
[1729630773758,4.13164,2634.4,2633.9,1.54875549]
[1729630773971,0.04479044,2634.2,2633.9,1.54875549]
[1729630774120,0.04480559,2634.3,2633.9,2.49196972]
[1729630774463,0.04480559,2634.3,2633.9,1.69771423]
[1729630774464,3.79608,2634.3,2633.9,1.69771423]
[1729630774837,0.04479044,2634.2,2633.9,2.49196972]
[1729630775141,3.79608,2634.3,2633.9,2.49196972]
[1729630775447,0.04477529,2634.1,2633.9,6.36453496]
[1729630775653,3.79608,2634.3,2633.9,6.36453496]
[1729630776058,0.04479044,2634.2,2633.9,6.36453496]
[1729630776221,0.04479044,2634.2,2633.9,2.56789496]
[1729630776428,3.79608,2634.3,2633.9,2.49196972]
[1729630776743,0.04479044,2634.2,2633.9,1.54875549]
[1729630776925,0.04479044,2634.2,2633.8,4.59103549]
[1729630777125,3.79608,2634.3,2633.8,4.59103549]
[1729630777490,5.45774597,2634.0,2633.7,1.60705549]
[1729630777629,1.99686597,2634.1,2633.7,5.40397549]
[1729630777824,0.3357,2634.1,2633.7,1.60705549]
[1729630778138,0.04470656,2634.0,2633.7,1.60705549]
[1729630778974,0.04470656,2634.0,2633.7,0.8128]
[1729630783338,0.04470656,2634.0,2633.7,5.67176292]
[1729630783868,0.04470656,2634.0,2633.7,6.46444986]
[1729630786169,0.04470656,2634.0,2633.7,5.67176292]
[1729630788573,0.04470656,2634.0,2633.7,1.87488292]
[1729630788773,0.04470656,2634.0,2633.7,0.8128]
[1729630789488,0.04470656,2634.0,2633.7,5.40253067]
[1729630794476,0.04470656,2634.0,2633.9,4.58950067]
[1729630794848,5.45714597,2634.4,2633.9,4.58950067]
[1729630795239,1.66116597,2634.3,2633.9,4.58950067]
[1729630795440,5.50044984,2634.3,2633.9,0.79285067]
[1729630795686,1.66116597,2634.2,2633.9,0.79285067]
[1729630795979,0.04321646,2634.1,2633.9,0.79285067]
[1729630796344,1.66116597,2634.0,2633.9,0.79285067]
[1729630796775,0.04320131,2634.0,2633.9,0.79285067]
[1729630798687,0.04320131,2634.0,2633.8,0.79285067]
[1729630798898,0.04320131,2634.0,2633.9,0.79285067]
[1729630799064,0.04320131,2634.0,2633.8,0.79285067]
[1729630799996,0.04320131,2634.0,2633.9,0.79285067]
[1729630801762,0.04320131,2634.0,2633.9,4.66543323]
[1729630801969,0.04320131,2634.0,2633.9,6.03208089]
[1729630803109,0.04320131,2634.0,2633.9,5.95614833]
[1729630803274,0.04320131,2634.0,2633.9,2.15949833]
[1729630803475,0.04320131,2634.0,2633.9,0.79285067]
[1729630804306,0.04320131,2634.0,2633.8,0.79285067]
[1729630804661,5.45781597,2633.9,2633.8,0.79285067]
[1729630804863,1.70436728,2634.0,2633.7,0.79285067]
[1729630805308,0.04320131,2634.0,2633.7,0.79285067]
[1729630805880,0.04320131,2634.0,2633.7,4.58978067]
[1729630806709,0.04320131,2634.0,2633.7,0.79285067]
[1729630806879,1.70436728,2634.0,2633.7,0.79285067]
[1729630807270,3.83972131,2634.0,2633.7,0.79285067]
[1729630808311,0.04320131,2634.0,2633.7,0.79285067]
[1729630808611,3.79667,2633.9,2633.7,0.79285067]
[1729630810399,0.04320131,2634.0,2633.7,0.79285067]
[1729630810582,3.83970131,2634.0,2633.7,0.79285067]
[1729630813983,5.50086728,2634.0,2633.7,0.79285067]
[1729630814504,3.79666,2633.9,2633.7,0.79285067]
[1729630814820,5.45795597,2633.8,2633.6,0.79285067]
[1729630814980,5.45795597,2633.8,2633.4,1.60035067]
[1729630815723,5.45810597,2633.7,2633.4,0.79285067]
[1729630816090,5.45810597,2633.7,2633.3,4.59027067]
[1729630817833,0.04312579,2633.6,2633.4,0.79285067]
[1729630818186,0.04312579,2633.6,2633.3,4.59027067]
[1729630818391,5.45810597,2633.7,2633.3,4.59027067]
[1729630818828,5.45810597,2633.7,2633.4,0.79285067]
[1729630819125,5.45810597,2633.7,2633.3,4.59027067]
[1729630823097,5.45810597,2633.7,2633.3,0.79285067]
[1729630823500,0.04277637,2633.6,2633.3,0.79285067]
[1729630824311,0.04277637,2633.6,2633.3,4.59034067]
[1729630825964,0.04277637,2633.6,2633.3,4.58900737]
[1729630828772,0.04277637,2633.6,2633.3,4.58891737]
[1729630828934,0.04277637,2633.6,2633.5,6.23468597]
[1729630829142,4.13198,2634.2,2633.7,3.79692]
[1729630829337,4.13198,2634.2,2633.8,4.57306]
[1729630829530,0.04286524,2634.1,2633.8,4.57306]
[1729630829817,0.04286524,2634.1,2633.8,0.7763]
[1729630831434,5.45732597,2634.3,2633.8,4.57309]
[1729630831634,0.0428505,2634.0,2633.8,4.57309]
[1729630831852,3.79616,2634.3,2633.8,7.5148633]
[1729630832176,0.04283535,2633.9,2633.8,5.85369733]
[1729630832337,3.79616,2634.3,2633.8,5.85369733]
[1729630832532,0.04283535,2633.9,2633.8,5.85369733]
[1729630832733,5.45732597,2634.3,2633.8,5.85369733]
[1729630832981,0.04283535,2633.9,2633.8,5.85369733]
[1729630833148,5.45732597,2634.3,2633.8,5.85369733]
[1729630833476,0.04288079,2634.2,2633.8,2.05690733]
[1729630833691,3.79616,2634.3,2633.9,4.66703893]
[1729630833844,0.04286565,2634.1,2633.9,3.79662]
[1729630834042,5.45732597,2634.3,2633.9,3.79662]
[1729630834351,5.45732597,2634.3,2633.8,0.85222658]
[1729630834352,0.04285925,2634.0,2633.8,4.57309]
[1729630834548,3.79593,2634.4,2633.9,3.79653]
[1729630834759,1.66116597,2634.3,2633.9,3.79653]
[1729630834935,1.66116597,2634.3,2633.8,0.7763]
[1729630835135,5.45727597,2634.3,2633.8,4.57308]
[1729630835941,5.45727597,2634.3,2633.8,5.36604404]
[1729630836141,1.66116597,2634.2,2633.8,5.36604404]
[1729630836972,5.45727597,2634.3,2633.8,9.16275404]
[1729630837286,5.45727597,2634.3,2633.8,10.36407364]
[1729630838059,1.66116597,2634.3,2633.9,3.79659]
[1729630839986,5.45724597,2634.3,2633.8,6.56729364]
[1729630840182,5.45724597,2634.3,2633.8,5.36597404]
[1729630842172,3.79595,2634.4,2633.9,0.79296404]
[1729630842371,1.99686597,2634.5,2633.9,0.79296404]
[1729630842372,0.04309072,2634.2,2634.1,3.79636]
[1729630842738,4.51288901,2634.7,2634.2,3.79621]
[1729630843088,6.17405498,2634.7,2634.2,3.79621]
[1729630843502,6.17405498,2634.7,2634.2,7.59231]
[1729630843795,0.3357,2634.9,2634.4,1.66116597]
[1729630843979,0.3357,2634.9,2634.5,3.79571]
[1729630844151,5.79208597,2634.9,2634.3,7.07457001]
[1729630844591,5.79208597,2634.9,2634.4,3.79586]
[1729630845498,5.79208597,2634.9,2634.3,7.07457001]
[1729630845688,5.79208597,2634.9,2634.5,3.79575]
[1729630845883,4.13092,2634.9,2634.5,3.79575]
[1729630847287,4.13092,2634.9,2634.4,3.79592]
[1729630847288,5.79208597,2634.9,2634.4,3.79592]
[1729630854317,1.66116597,2634.8,2634.4,3.79592]
[1729630854615,5.45660597,2634.8,2634.3,4.62044]
[1729630854815,1.66116597,2634.7,2634.3,4.62044]
[1729630855020,5.45660597,2634.8,2634.3,4.62044]
[1729630855509,5.45660597,2634.8,2634.4,3.79591]
[1729630856281,3.79544,2634.8,2634.4,3.79591]
[1729630856684,5.45660597,2634.8,2634.4,3.79591]
[1729630857284,0.04353572,2634.7,2634.4,3.79591]
[1729630857483,5.45660597,2634.8,2634.4,3.79591]
[1729630857714,0.04352058,2634.6,2634.4,3.79591]
[1729630858026,5.45660597,2634.8,2634.4,3.79591]
[1729630858027,0.04350543,2634.5,2634.4,3.79591]
[1729630858317,5.45660597,2634.8,2634.4,3.79591]
[1729630858519,0.04352137,2634.5,2634.4,3.79591]
[1729630858720,5.45660597,2634.8,2634.4,3.79591]
[1729630859314,0.04355165,2634.7,2634.4,3.79591]
[1729630859827,0.04353651,2634.6,2634.4,3.79591]
[1729630859982,5.45660597,2634.8,2634.4,3.79591]
[1729630860181,0.04355165,2634.7,2634.4,3.79591]
[1729630860381,5.45660597,2634.8,2634.4,3.79591]
[1729630860622,0.04355165,2634.7,2634.4,3.79591]
[1729630861017,5.79207597,2634.9,2634.4,3.79591]
[1729630861387,0.0435727,2634.8,2634.4,7.66763998]
[1729630861613,0.0435727,2634.8,2634.4,3.87172998]
[1729630863251,0.0435727,2634.8,2634.7,6.21915597]
[1729630863448,1.66278161,2635.3,2634.9,3.79513]
[1729630863607,1.66278161,2635.3,2634.8,3.79526]
[1729630863608,1.70339737,2635.2,2634.8,3.79526]
[1729630864230,0.0422314,2635.2,2634.8,3.79526]
[1729630864434,1.66278161,2635.3,2634.9,3.79517]
[1729630864613,0.04223571,2635.2,2634.9,3.79517]
[1729630864817,0.00161564,2635.3,2635.0,0.07589337]
[1729630865041,0.04223571,2635.2,2635.1,8.40681]
[1729630865350,0.00161564,2635.3,2635.1,8.40681]
[1729630865511,0.04268398,2635.2,2635.1,8.40681]
[1729630865711,0.04268398,2635.2,2635.1,5.452651]
[1729630865911,0.00161564,2635.3,2635.1,5.452651]
[1729630866144,0.04267967,2635.2,2635.1,5.452651]
[1729630866439,0.00161564,2635.3,2635.1,5.452651]
[1729630866809,0.04267967,2635.2,2635.1,5.452651]
[1729630867013,0.00161564,2635.3,2635.2,3.79477]
[1729630867343,0.04431045,2635.3,2635.2,4.7195121]
[1729630867544,0.00161564,2635.3,2635.2,4.7195121]
[1729630867784,0.04296822,2635.3,2635.2,4.7195121]
[1729630867955,0.00161564,2635.3,2635.2,4.7195121]
[1729630868107,0.04296391,2635.3,2635.2,4.7195121]
[1729630868606,0.04296391,2635.3,2635.2,0.9247421]
[1729630868946,0.04296391,2635.3,2635.2,4.7195121]
[1729630874148,0.04296391,2635.3,2635.2,6.38067807]
[1729630876777,0.04296391,2635.3,2635.2,4.7195121]
[1729630877833,0.04296391,2635.3,2635.2,0.9247421]
[1729630878457,0.04296391,2635.3,2635.2,4.7195121]
[1729630879166,0.04296391,2635.3,2635.2,0.9247421]
[1729630880324,0.04296391,2635.3,2635.0,3.79506]
[1729630881435,0.04296391,2635.3,2634.6,0.79296404]
[1729630881436,5.45596597,2635.2,2634.7,4.55511]
[1729630881638,0.03915309,2635.1,2634.8,3.7953]
[1729630882467,5.45745161,2635.3,2634.8,3.7953]
[1729630882668,0.03919641,2635.2,2634.8,5.45646597]
[1729630882865,3.79628564,2635.3,2634.9,1.0011576]
[1729630883052,0.03919641,2635.2,2634.9,1.0011576]
[1729630883369,3.79628564,2635.3,2634.9,1.0011576]
[1729630883540,0.03918127,2635.1,2634.9,1.0011576]
[1729630883745,1.99686597,2635.2,2634.5,5.05825704]
[1729630884086,3.79501,2635.1,2634.7,1.66116597]
[1729630884284,0.03917204,2635.0,2634.7,1.66116597]
[1729630884583,0.03917204,2635.0,2634.7,2.70963387]
[1729630884945,3.79501,2635.1,2634.7,6.50511387]
[1729630886081,0.3357,2635.2,2634.7,4.8438679]
[1729630886377,4.13049,2635.2,2634.7,6.50503387]
[1729630887064,4.13049,2635.2,2634.7,4.8438679]
[1729630887251,4.13049,2635.2,2634.7,6.50503387]
[1729630888478,4.13049,2635.2,2634.7,5.45654597]
[1729630888676,0.03918877,2635.1,2634.8,3.79534]
[1729630889469,0.03918877,2635.1,2634.7,1.66116597]
[1729630889775,0.03918877,2635.1,2634.7,5.45665597]
[1729630890479,0.03918877,2635.1,2634.7,9.25207597]
[1729630891782,0.03918877,2635.1,2634.7,5.45658597]
[1729630891982,0.03918877,2635.1,2634.8,5.45646597]
[1729630892276,0.03918877,2635.1,2634.8,3.7953]
[1729630892649,0.03918877,2635.1,2634.7,5.45658597]
[1729630893183,0.03918877,2635.1,2634.7,10.04494001]
[1729630893486,0.03918877,2635.1,2634.9,5.45636597]
[1729630893690,3.79625564,2635.3,2634.9,5.45636597]
[1729630893857,0.0389867,2635.2,2634.9,5.45636597]
[1729630894059,3.79625564,2635.3,2634.9,3.7952]
[1729630894261,0.0389867,2635.2,2634.9,3.7952]
[1729630894489,3.79625564,2635.3,2634.9,3.7952]
[1729630894649,0.0389867,2635.2,2634.9,3.7952]
[1729630894849,3.79625564,2635.3,2634.9,3.7952]
[1729630895078,0.0389867,2635.2,2634.9,3.7952]
[1729630895384,3.79625564,2635.3,2634.9,3.7952]
[1729630895585,0.03897588,2635.1,2634.9,3.7952]
[1729630895786,3.79625564,2635.3,2634.9,3.7952]
[1729630896260,0.03899101,2635.2,2634.9,3.7952]
[1729630896449,3.79625564,2635.3,2634.9,3.7952]
[1729630896643,0.04059294,2635.2,2634.9,3.7952]
[1729630897947,0.04059294,2635.2,2634.9,5.45628597]
[1729630898153,0.04059294,2635.2,2634.9,6.16984077]
[1729630899353,0.04059294,2635.2,2634.9,3.79512]
[1729630899885,0.04059294,2635.2,2634.9,5.45628597]
[1729630903085,0.04059294,2635.2,2634.9,3.79512]
[1729630903288,0.04059294,2635.2,2634.8,1.60336404]
[1729630903498,0.04059294,2635.2,2634.8,3.26453001]
[1729630903654,0.04059294,2635.2,2634.8,1.60336404]
[1729630903853,0.04059294,2635.2,2634.8,3.26453001]
[1729630904396,3.79521,2634.9,2634.6,0.79296404]
[1729630904697,0.03776136,2634.8,2634.5,0.79296404]
[1729630904852,3.79521,2634.9,2634.5,0.79296404]
[1729630905052,3.79521,2634.9,2634.5,2.45413001]
[1729630905350,3.79507,2635.0,2634.6,0.79296404]
[1729630905553,0.3357,2634.9,2634.5,6.24991001]
[1729630905992,0.03776136,2634.8,2634.6,4.58859404]
[1729630906195,0.03776136,2634.8,2634.6,6.24976001]
[1729630906494,0.3357,2634.9,2634.6,6.24976001]
[1729630906714,0.03776136,2634.8,2634.6,6.24976001]
[1729630906910,0.3357,2634.9,2634.6,6.24976001]
[1729630907071,0.03775369,2634.8,2634.6,6.68074566]
[1729630907270,0.3357,2634.9,2634.6,6.68074566]
[1729630907504,0.03775369,2634.8,2634.7,2.45413001]
[1729630907817,0.03775369,2634.8,2634.7,0.79296404]
[1729630908612,0.03775369,2634.8,2634.7,2.45413001]
[1729630909003,0.03775369,2634.8,2634.7,1.66116597]
[1729630909180,0.03775369,2634.8,2634.6,6.68074566]
[1729630909714,0.03775369,2634.8,2634.7,1.66116597]
[1729630911373,0.3357,2634.9,2634.7,1.66116597]
[1729630913622,0.3357,2634.9,2634.6,2.88511566]
[1729630913913,0.3357,2634.9,2634.6,6.24970001]
[1729630915630,0.3357,2634.9,2634.6,2.45413001]
[1729630916000,4.13094,2634.9,2634.5,6.24990001]
[1729630916208,4.13094,2634.9,2634.6,0.79296404]
[1729630916901,4.13094,2634.9,2634.5,6.24990001]
[1729630917287,4.13094,2634.9,2634.5,2.45413001]
[1729630917493,3.79536,2634.8,2634.5,2.45413001]
[1729630918245,4.13094,2634.9,2634.5,2.45413001]
[1729630918414,4.13094,2634.9,2634.6,0.79296404]
[1729630918733,3.79536,2634.8,2634.6,0.79296404]
[1729630918908,3.79536,2634.8,2634.5,0.79296404]
[1729630919699,3.79536,2634.8,2634.5,2.45413001]
[1729630920432,4.13091,2634.9,2634.5,6.24991001]
[1729630922550,0.3357,2635.1,2634.7,2.45413001]
[1729630922716,0.00159602,2635.2,2634.8,4.58822404]
[1729630924326,3.79639602,2635.2,2634.8,4.58822404]
[1729630926631,3.79639602,2635.2,2634.9,0.79296404]
[1729630926844,3.79639602,2635.2,2634.8,4.58822404]
[1729630928256,3.79639602,2635.2,2634.9,0.79296404]
[1729630928863,3.59487102,2635.2,2634.9,0.79296404]
[1729630929021,3.59487102,2635.2,2634.8,0.79296404]
[1729630929022,3.79494,2635.1,2634.8,0.79296404]
[1729630929232,3.79494,2635.1,2634.9,0.79296404]
[1729630929442,0.3357,2635.3,2634.8,2.45413001]
[1729630929663,0.3357,2635.3,2634.9,2.81847061]
[1729630929664,4.13033,2635.3,2634.9,2.81847061]
[1729630929864,4.13033,2635.3,2634.9,1.15730464]
[1729630930035,4.13033,2635.3,2635.0,0.79296404]
[1729630930833,0.3357,2635.3,2635.0,0.79296404]
[1729630931158,4.13034,2635.3,2634.9,7.37895061]
[1729630931343,4.13034,2635.3,2635.0,1.6497867]
[1729630931937,0.3357,2635.3,2635.0,1.6497867]
[1729630933074,4.13035,2635.3,2635.0,1.6497867]
[1729630935642,3.79465,2635.3,2635.0,1.6497867]
[1729630938479,3.79465,2635.3,2635.0,0.85682266]
[1729630938673,3.79465,2635.3,2635.0,1.6497867]
[1729630938899,3.79465,2635.3,2635.0,0.79296404]
[1729630939304,3.79449,2635.4,2635.0,0.79296404]
[1729630940305,4.13005,2635.5,2635.0,4.58800404]
[1729630940466,7.92447,2635.5,2635.0,4.58800404]
[1729630943971,3.7945,2635.4,2635.0,4.58800404]
[1729630944167,4.13005,2635.5,2635.0,10.97686363]
[1729630944372,4.13005,2635.5,2635.0,10.90096867]
[1729630945168,4.13005,2635.5,2635.1,3.79491]
[1729630945370,3.79435,2635.5,2635.2,0.8025]
[1729630948912,3.79435,2635.5,2635.2,3.25451484]
[1729630949069,3.79435,2635.5,2635.2,1.59334887]
[1729630952307,3.79435,2635.5,2635.2,0.8025]
[1729630954778,3.79453,2635.4,2635.2,0.8025]
[1729630955846,3.79435,2635.5,2635.2,0.8025]
[1729630956548,3.79435,2635.5,2635.0,5.39580404]
[1729630957542,3.79435,2635.5,2635.0,5.47169716]
[1729630958261,3.79435,2635.5,2635.0,7.13286313]
[1729630958551,3.7947,2635.3,2634.9,0.79296404]
[1729630958713,3.7947,2635.3,2634.8,4.58830404]
[1729630958909,3.79479,2635.2,2634.8,4.58830404]
[1729630959116,3.79479,2635.2,2634.8,6.24947001]
[1729630959323,3.7947,2635.3,2634.8,4.58830404]
[1729630959324,7.58947,2635.3,2634.8,4.58830404]
[1729630959546,3.7947,2635.3,2634.8,4.58830404]
[1729630959918,7.58944,2635.3,2634.8,4.58830404]
[1729630960514,7.59,2635.1,2634.7,0.79296404]
[1729630961553,3.79498,2635.1,2634.7,0.79296404]
[1729630962557,3.79509,2635.0,2634.7,2.45413001]
[1729630962850,3.79509,2635.0,2634.7,0.79296404]
[1729630963070,3.79509,2635.0,2634.6,2.45413001]
[1729630963283,3.79509,2635.0,2634.7,0.79296404]
[1729630964135,3.79528,2634.9,2634.7,0.79296404]
[1729630964382,3.79528,2634.9,2634.5,1.61526404]
[1729630964383,0.3357,2634.9,2634.5,1.61526404]
[1729630964673,3.79541,2634.8,2634.5,0.79296404]
[1729630971102,4.13091,2634.9,2634.5,3.47843641]
[1729630971576,4.13091,2634.9,2634.5,1.81727044]
[1729630974568,4.13091,2634.9,2634.5,3.47843641]
[1729630975211,4.13091,2634.9,2634.5,1.81727044]
[1729630975805,4.13091,2634.9,2634.5,3.47843641]
[1729630977609,4.13091,2634.9,2634.5,1.81727044]
[1729630978215,3.79517,2635.0,2634.6,0.7659]
[1729630978883,3.79523,2634.9,2634.6,0.7659]
[1729630981425,7.59053,2634.9,2634.6,0.7659]
[1729630981578,3.79523,2634.9,2634.6,0.7659]
[1729630982219,3.79523,2634.9,2634.6,1.82003183]
[1729630986136,4.13071,2635.1,2634.6,1.82003183]
[1729630986348,3.79506,2635.0,2634.7,1.66116597]
[1729630986503,3.79506,2635.0,2634.6,6.40856587]
[1729630986701,3.79506,2635.0,2634.7,0.90940382]
[1729630990344,3.79478,2635.2,2634.7,6.44192557]
[1729630990643,3.79478,2635.2,2634.8,0.7983]
[1729630990945,7.58969,2635.2,2634.8,0.7983]
[1729630992144,3.79478,2635.2,2634.8,0.7983]
[1729630992503,7.58965,2635.2,2634.8,0.7983]
[1729630997969,3.79498,2635.1,2634.8,0.7983]
[1729631001772,3.79498,2635.1,2634.8,1.59126404]
[1729631006953,3.79509,2635.0,2634.9,0.79296404]
[1729631007153,3.79509,2635.0,2634.8,0.7983]
[1729631007154,3.79509,2635.0,2634.8,1.59126404]
[1729631007595,3.79509,2635.0,2634.9,0.79296404]
[1729631008093,3.79493,2635.1,2634.8,1.59126404]
[1729631010438,3.79507,2635.0,2634.8,1.59126404]
[1729631010644,3.79507,2635.0,2634.8,0.79296404]
[1729631011225,1.66116597,2635.1,2634.8,0.79296404]
[1729631011544,3.79521,2634.9,2634.8,0.79296404]
[1729631014667,3.79521,2634.9,2634.7,0.79296404]
[1729631015550,3.79521,2634.9,2634.8,0.79296404]
[1729631016929,3.79521,2634.9,2634.7,0.79296404]
[1729631017967,3.79535,2634.8,2634.7,0.79296404]
[1729631022191,3.79549,2634.7,2634.6,0.79296404]
[1729631022346,3.79549,2634.7,2634.5,0.79296404]
[1729631025043,3.79564,2634.6,2634.5,0.79296404]
[1729631026248,0.3357,2634.8,2634.5,0.79296404]
[1729631026473,3.79551,2634.7,2634.5,0.79296404]
[1729631026643,7.59109,2634.7,2634.5,0.79296404]
[1729631027253,3.79551,2634.7,2634.5,0.79296404]
[1729631027571,7.59114,2634.7,2634.5,0.79296404]
[1729631027772,3.79564,2634.6,2634.5,0.79296404]
[1729631028096,3.79564,2634.6,2634.4,0.79296404]
[1729631028860,3.79551,2634.7,2634.4,0.79296404]
[1729631029700,3.79551,2634.7,2634.3,1.18927601]
[1729631029701,0.3357,2634.5,2634.3,0.79296404]
[1729631029989,4.13148,2634.5,2634.2,0.79296404]
[1729631031253,7.9274,2634.5,2634.2,0.79296404]
[1729631031578,4.13148,2634.5,2634.2,0.79296404]
[1729631031964,4.13148,2634.5,2634.1,0.79296404]
[1729631032492,3.79595,2634.4,2634.1,0.79296404]
[1729631033914,3.79595,2634.4,2634.0,1.56486404]
[1729631036992,0.3357,2634.3,2633.8,0.79296404]
[1729631037283,3.79621,2634.2,2633.8,0.79296404]
[1729631037488,3.79621,2634.2,2633.7,5.39349404]
[1729631037796,7.59257,2634.2,2633.7,2.63453805]
[1729631038162,7.59257,2634.2,2633.7,1.84157401]
[1729631038364,3.79647,2634.1,2633.7,0.8036]
[1729631039772,3.79654,2634.0,2633.7,0.8036]